[Event "*** SCC Grand Prix: Titled Tuesday Blitz"]
[Site "Chess.com"]
[Date "2020.08.11"]
[Round "8"]
[White "GM_dmitrij"]
[Black "Gareth-Bale11"]
[Result "1/2-1/2"]
[WhiteElo "2930"]
[BlackElo "2819"]
[TimeControl "180+1"]
[EndTime "11:38:08 PDT"]
[Termination "Game drawn - insufficient material"]

1. e4 {[%clk 0:03:00.9]} 1... e5 {[%clk 0:02:55.2]} 2. Nf3 {[%clk 0:03:00.9]}
2... Nc6 {[%clk 0:02:55.4]} 3. Bc4 {[%clk 0:03:01.4]} 3... Bc5 {[%clk
0:02:53.5]} 4. c3 {[%clk 0:03:01.4]} 4... Nf6 {[%clk 0:02:52.9]} 5. d3 {[%clk
0:03:01.7]} 5... d6 {[%clk 0:02:52.3]} 6. O-O {[%clk 0:03:01.5]} 6... h6 {[%clk
0:02:49.5]} 7. Nbd2 {[%clk 0:03:01.7]} 7... O-O {[%clk 0:02:48.9]} 8. Re1 {[%clk
0:03:00.1]} 8... a5 {[%clk 0:02:48]} 9. Nf1 {[%clk 0:02:56.1]} 9... Re8 {[%clk
0:02:31.4]} 10. Ng3 {[%clk 0:02:51.5]} 10... Bd7 {[%clk 0:02:04.3]} 11. a4
{[%clk 0:02:50.6]} 11... Qb8 {[%clk 0:01:48.9]} 12. Qb3 {[%clk 0:02:34.6]} 12...
Re7 {[%clk 0:01:19.8]} 13. h3 {[%clk 0:02:30]} 13... Qa7 {[%clk 0:01:17.9]} 14.
Qc2 {[%clk 0:02:30.6]} 14... Ree8 {[%clk 0:01:13.2]} 15. Nh4 {[%clk 0:02:30]}
15... Ne7 {[%clk 0:01:10.3]} 16. Qe2 {[%clk 0:02:25.4]} 16... Be6 {[%clk
0:00:50.9]} 17. Qf3 {[%clk 0:02:21.3]} 17... Kh7 {[%clk 0:00:36.8]} 18. Nhf5
{[%clk 0:02:12.8]} 18... Nfg8 {[%clk 0:00:31.4]} 19. Be3 {[%clk 0:02:05.4]}
19... Bxe3 {[%clk 0:00:29.8]} 20. Nxe3 {[%clk 0:02:05.2]} 20... Bxc4 {[%clk
0:00:25.7]} 21. Nxc4 {[%clk 0:02:06.1]} 21... Nf6 {[%clk 0:00:24.7]} 22. Rad1
{[%clk 0:01:57]} 22... Ng6 {[%clk 0:00:23.3]} 23. Nf5 {[%clk 0:01:53.7]} 23...
Rad8 {[%clk 0:00:19]} 24. g3 {[%clk 0:01:49]} 24... Qa6 {[%clk 0:00:17.5]} 25.
Nce3 {[%clk 0:01:44.4]} 25... Qb6 {[%clk 0:00:15.4]} 26. Rb1 {[%clk 0:01:35.5]}
26... Qc6 {[%clk 0:00:14]} 27. Ra1 {[%clk 0:01:23.8]} 27... d5 {[%clk
0:00:13.4]} 28. exd5 {[%clk 0:01:20.8]} 28... Nxd5 {[%clk 0:00:13.5]} 29. Nc4
{[%clk 0:01:21.2]} 29... Qf6 {[%clk 0:00:08.9]} 30. Qe4 {[%clk 0:01:19.1]} 30...
b6 {[%clk 0:00:07.6]} 31. h4 {[%clk 0:01:19.5]} 31... h5 {[%clk 0:00:07.3]} 32.
Nd2 {[%clk 0:01:14.8]} 32... Nde7 {[%clk 0:00:06.8]} 33. Ne3 {[%clk 0:01:11.5]}
33... Kg8 {[%clk 0:00:06.5]} 34. Nf3 {[%clk 0:01:09.8]} 34... Qc6 {[%clk
0:00:06.7]} 35. Nc4 {[%clk 0:00:59.6]} 35... Qxe4 {[%clk 0:00:06.3]} 36. dxe4
{[%clk 0:01:00.5]} 36... f6 {[%clk 0:00:06.7]} 37. Red1 {[%clk 0:00:55.3]} 37...
Kf7 {[%clk 0:00:06.4]} 38. Kf1 {[%clk 0:00:55.8]} 38... Nf8 {[%clk 0:00:06.3]}
39. Ke2 {[%clk 0:00:54.7]} 39... Ne6 {[%clk 0:00:06.4]} 40. b4 {[%clk
0:00:52.7]} 40... axb4 {[%clk 0:00:06.2]} 41. cxb4 {[%clk 0:00:52.3]} 41... Nc6
{[%clk 0:00:06.6]} 42. Rxd8 {[%clk 0:00:36.1]} 42... Rxd8 {[%clk 0:00:06.5]} 43.
Rb1 {[%clk 0:00:37]} 43... Ncd4+ {[%clk 0:00:05.8]} 44. Nxd4 {[%clk 0:00:37.5]}
44... Rxd4 {[%clk 0:00:06.1]} 45. Nd2 {[%clk 0:00:35.7]} 45... Rd8 {[%clk
0:00:04.6]} 46. a5 {[%clk 0:00:24.8]} 46... Ra8 {[%clk 0:00:03.6]} 47. Nb3
{[%clk 0:00:21.2]} 47... bxa5 {[%clk 0:00:02.4]} 48. bxa5 {[%clk 0:00:16.6]}
48... Rb8 {[%clk 0:00:02.5]} 49. Nd2 {[%clk 0:00:16.8]} 49... Ra8 {[%clk
0:00:02.4]} 50. Ra1 {[%clk 0:00:16.8]} 50... Nd4+ {[%clk 0:00:02.5]} 51. Kd3
{[%clk 0:00:17.3]} 51... Ke6 {[%clk 0:00:03.4]} 52. Kc4 {[%clk 0:00:16.2]} 52...
Kd6 {[%clk 0:00:03.4]} 53. Ra2 {[%clk 0:00:09.9]} 53... Nc6 {[%clk 0:00:03]} 54.
Nb3 {[%clk 0:00:09.8]} 54... Rb8 {[%clk 0:00:03.3]} 55. Rd2+ {[%clk 0:00:07.9]}
55... Ke7 {[%clk 0:00:03.4]} 56. a6 {[%clk 0:00:08.8]} 56... Rb4+ {[%clk
0:00:02.4]} 57. Kc3 {[%clk 0:00:07.9]} 57... Ra4 {[%clk 0:00:02.1]} 58. Rd5
{[%clk 0:00:06.8]} 58... Nb4 {[%clk 0:00:01.3]} 59. Ra5 {[%clk 0:00:06.1]} 59...
Rxa5 {[%clk 0:00:01.2]} 60. Nxa5 {[%clk 0:00:07]} 60... Nxa6 {[%clk 0:00:01.7]}
61. Kc4 {[%clk 0:00:07.6]} 61... Nb8 {[%clk 0:00:01.9]} 62. Kd5 {[%clk
0:00:07.5]} 62... Kd7 {[%clk 0:00:02.3]} 63. Nb3 {[%clk 0:00:07.2]} 63... Na6
{[%clk 0:00:02.6]} 64. Kc4 {[%clk 0:00:07]} 64... c6 {[%clk 0:00:03]} 65. f4
{[%clk 0:00:07.5]} 65... Kd6 {[%clk 0:00:03.3]} 66. Na5 {[%clk 0:00:07.2]} 66...
Nc7 {[%clk 0:00:03.4]} 67. Nb7+ {[%clk 0:00:07.3]} 67... Kd7 {[%clk 0:00:04]}
68. Nc5+ {[%clk 0:00:08.2]} 68... Ke7 {[%clk 0:00:04.1]} 69. Nd3 {[%clk
0:00:08.1]} 69... Kd6 {[%clk 0:00:04.4]} 70. f5 {[%clk 0:00:08]} 70... Nb5
{[%clk 0:00:04.7]} 71. Nc5 {[%clk 0:00:07]} 71... Nd4 {[%clk 0:00:05.1]} 72.
Nb7+ {[%clk 0:00:07.4]} 72... Ke7 {[%clk 0:00:05]} 73. Nc5 {[%clk 0:00:07.9]}
73... Ne2 {[%clk 0:00:05.4]} 74. Ne6 {[%clk 0:00:08.2]} 74... Kf7 {[%clk
0:00:05.7]} 75. Nd8+ {[%clk 0:00:07.8]} 75... Kg8 {[%clk 0:00:05.3]} 76. Kd3
{[%clk 0:00:07.4]} 76... Nd4 {[%clk 0:00:04.5]} 77. Kc4 {[%clk 0:00:07.1]} 77...
Kh7 {[%clk 0:00:03.9]} 78. Ne6 {[%clk 0:00:05.9]} 78... Ne2 {[%clk 0:00:03.1]}
79. Kd3 {[%clk 0:00:05.9]} 79... Nxg3 {[%clk 0:00:02.4]} 80. Nf8+ {[%clk
0:00:05.6]} 80... Kg8 {[%clk 0:00:02.4]} 81. Ne6 {[%clk 0:00:06.5]} 81... Kf7
{[%clk 0:00:02.6]} 82. Nd8+ {[%clk 0:00:06.9]} 82... Ke8 {[%clk 0:00:03]} 83.
Nxc6 {[%clk 0:00:07.8]} 83... Kd7 {[%clk 0:00:02.9]} 84. Nb4 {[%clk 0:00:08.1]}
84... Kd6 {[%clk 0:00:03]} 85. Ke3 {[%clk 0:00:07.6]} 85... Kc5 {[%clk
0:00:03.2]} 86. Nd3+ {[%clk 0:00:07.3]} 86... Kc4 {[%clk 0:00:03.5]} 87. Nb2+
{[%clk 0:00:07.9]} 87... Kc3 {[%clk 0:00:03.5]} 88. Na4+ {[%clk 0:00:08.4]}
88... Kb4 {[%clk 0:00:03.8]} 89. Nb6 {[%clk 0:00:08.6]} 89... Kc5 {[%clk
0:00:04.1]} 90. Nc8 {[%clk 0:00:08.9]} 90... Kc6 {[%clk 0:00:03.9]} 91. Ne7+
{[%clk 0:00:08.8]} 91... Kd7 {[%clk 0:00:04.1]} 92. Nd5 {[%clk 0:00:09.1]} 92...
Kd6 {[%clk 0:00:04.6]} 93. Nb6 {[%clk 0:00:09]} 93... Ke7 {[%clk 0:00:04.8]} 94.
Nd5+ {[%clk 0:00:09.3]} 94... Kf7 {[%clk 0:00:05.1]} 95. Nb6 {[%clk 0:00:10.2]}
95... g6 {[%clk 0:00:05]} 96. fxg6+ {[%clk 0:00:11.1]} 96... Kxg6 {[%clk
0:00:05.9]} 97. Nd7 {[%clk 0:00:11]} 97... Kf7 {[%clk 0:00:04.4]} 98. Kf3 {[%clk
0:00:08]} 98... Nf1 {[%clk 0:00:04.3]} 99. Ke2 {[%clk 0:00:08]} 99... Nh2 {[%clk
0:00:03.7]} 100. Nc5 {[%clk 0:00:07.4]} 100... Ng4 {[%clk 0:00:03.9]} 101. Kf3
{[%clk 0:00:08.3]} 101... Kg6 {[%clk 0:00:04.1]} 102. Nd7 {[%clk 0:00:06.8]}
102... f5 {[%clk 0:00:04.4]} 103. exf5+ {[%clk 0:00:06.5]} 103... Kxf5 {[%clk
0:00:05.3]} 104. Nc5 {[%clk 0:00:07.4]} 104... Nf6 {[%clk 0:00:04.9]} 105. Nb3
{[%clk 0:00:06.7]} 105... e4+ {[%clk 0:00:05.2]} 106. Ke3 {[%clk 0:00:06.4]}
106... Ke5 {[%clk 0:00:05.4]} 107. Nd2 {[%clk 0:00:05.4]} 107... Nd5+ {[%clk
0:00:05.8]} 108. Ke2 {[%clk 0:00:04.9]} 108... Kf4 {[%clk 0:00:06.1]} 109. Nc4
{[%clk 0:00:04.3]} 109... Nf6 {[%clk 0:00:06.2]} 110. Nd6 {[%clk 0:00:04.4]}
110... Ke5 {[%clk 0:00:06]} 111. Nf7+ {[%clk 0:00:04.5]} 111... Kf4 {[%clk
0:00:05.9]} 112. Nd8 {[%clk 0:00:05.4]} 112... Kg4 {[%clk 0:00:06]} 113. Ke3
{[%clk 0:00:05.3]} 113... Kxh4 {[%clk 0:00:06.2]} 114. Kf4 {[%clk 0:00:06.2]}
114... Kh3 {[%clk 0:00:02.3]} 115. Ne6 {[%clk 0:00:06.7]} 115... e3 {[%clk
0:00:01.8]} 116. Kxe3 {[%clk 0:00:06.2]} 116... Kg3 {[%clk 0:00:02.3]} 117. Nf4
{[%clk 0:00:05.6]} 117... Ng4+ {[%clk 0:00:02.5]} 118. Ke4 {[%clk 0:00:05.7]}
118... h4 {[%clk 0:00:02.9]} 119. Kf5 {[%clk 0:00:05.4]} 119... Ne3+ {[%clk
0:00:02.5]} 120. Kg5 {[%clk 0:00:05.8]} 120... Ng2 {[%clk 0:00:02.9]} 121. Ne2+
{[%clk 0:00:04.7]} 121... Kf2 {[%clk 0:00:02.5]} 122. Nf4 {[%clk 0:00:04.1]}
122... Nxf4 {[%clk 0:00:02]} 123. Kxh4 {[%clk 0:00:03.6]} 1/2-1/2

[Event "*** SCC Grand Prix: Titled Tuesday Blitz"]
[Site "Chess.com"]
[Date "2020.08.11"]
[Round "9"]
[White "Bodnar_Mykola"]
[Black "Bigfish1995"]
[Result "0-1"]
[WhiteElo "2546"]
[BlackElo "2944"]
[TimeControl "180+1"]
[EndTime "11:40:51 PDT"]
[Termination "Bigfish1995 won by resignation"]

1. e4 {[%clk 0:03:00.9]} 1... c5 {[%clk 0:02:57.6]} 2. Nf3 {[%clk 0:03:00.8]}
2... d6 {[%clk 0:02:57.8]} 3. d4 {[%clk 0:03:00.9]} 3... cxd4 {[%clk 0:02:58.7]}
4. Nxd4 {[%clk 0:03:01.8]} 4... Nf6 {[%clk 0:02:59.4]} 5. Nc3 {[%clk 0:03:02.3]}
5... a6 {[%clk 0:03:00]} 6. h3 {[%clk 0:03:00.6]} 6... e5 {[%clk 0:02:57.6]} 7.
Nde2 {[%clk 0:03:00.5]} 7... h5 {[%clk 0:02:57.8]} 8. Bg5 {[%clk 0:03:00.7]}
8... Be6 {[%clk 0:02:56.5]} 9. Bxf6 {[%clk 0:03:01.1]} 9... Qxf6 {[%clk
0:02:56.2]} 10. Nd5 {[%clk 0:03:02]} 10... Qd8 {[%clk 0:02:56.8]} 11. Qd3 {[%clk
0:03:01.7]} 11... Nd7 {[%clk 0:02:56.3]} 12. O-O-O {[%clk 0:03:00.3]} 12... g6
{[%clk 0:02:55.6]} 13. Kb1 {[%clk 0:02:59.9]} 13... h4 {[%clk 0:02:55.5]} 14. g3
{[%clk 0:02:50.7]} 14... Rc8 {[%clk 0:02:52.3]} 15. f4 {[%clk 0:02:47.3]} 15...
hxg3 {[%clk 0:02:48.5]} 16. Qxg3 {[%clk 0:02:43.7]} 16... Qh4 {[%clk 0:02:38.6]}
17. Qf3 {[%clk 0:02:29.8]} 17... Bxd5 {[%clk 0:02:38.5]} 18. Rxd5 {[%clk
0:02:24.4]} 18... Bh6 {[%clk 0:02:31.6]} 19. f5 {[%clk 0:01:57.4]} 19... Qe1+
{[%clk 0:02:30.4]} 0-1

[Event "*** SCC Grand Prix: Titled Tuesday Blitz"]
[Site "Chess.com"]
[Date "2020.08.11"]
[Round "9"]
[White "juancruzarias"]
[Black "a3aki"]
[Result "1/2-1/2"]
[WhiteElo "2353"]
[BlackElo "2117"]
[TimeControl "180+1"]
[EndTime "11:41:00 PDT"]
[Termination "Game drawn by repetition"]

1. d4 {[%clk 0:03:00.9]} 1... Nf6 {[%clk 0:02:59.9]} 2. Nf3 {[%clk 0:02:59.7]}
2... g6 {[%clk 0:03:00.3]} 3. Bg5 {[%clk 0:02:59.5]} 3... Bg7 {[%clk 0:03:00.5]}
4. Nbd2 {[%clk 0:03:00.2]} 4... d5 {[%clk 0:02:59.7]} 5. c3 {[%clk 0:03:00.3]}
5... O-O {[%clk 0:02:58.3]} 6. e3 {[%clk 0:03:00.8]} 6... h6 {[%clk 0:02:57.4]}
7. Bh4 {[%clk 0:03:00.7]} 7... c5 {[%clk 0:02:54.4]} 8. Be2 {[%clk 0:03:01.1]}
8... cxd4 {[%clk 0:02:52.4]} 9. exd4 {[%clk 0:03:00.9]} 9... Nc6 {[%clk
0:02:52.1]} 10. O-O {[%clk 0:03:01.3]} 10... Bf5 {[%clk 0:02:50]} 11. Re1 {[%clk
0:03:00.6]} 11... g5 {[%clk 0:02:50]} 12. Bg3 {[%clk 0:03:00.8]} 12... Bg6
{[%clk 0:02:50.3]} 13. Ne5 {[%clk 0:03:01]} 13... Nxe5 {[%clk 0:02:49.9]} 14.
Bxe5 {[%clk 0:03:01.9]} 14... Ne4 {[%clk 0:02:49.4]} 15. Bxg7 {[%clk 0:03:00.5]}
15... Kxg7 {[%clk 0:02:50.3]} 16. Nxe4 {[%clk 0:02:59.6]} 16... Bxe4 {[%clk
0:02:50.2]} 17. Bd3 {[%clk 0:02:59.3]} 17... Bxd3 {[%clk 0:02:50.2]} 18. Qxd3
{[%clk 0:03:00.2]} 18... e6 {[%clk 0:02:50.8]} 19. Re3 {[%clk 0:02:59.5]} 19...
Qd6 {[%clk 0:02:51]} 20. Rae1 {[%clk 0:02:59.4]} 20... Rae8 {[%clk 0:02:49.6]}
21. Qe2 {[%clk 0:02:58.2]} 21... f5 {[%clk 0:02:49.5]} 22. Rxe6 {[%clk
0:02:57.9]} 22... Rxe6 {[%clk 0:02:49.5]} 23. Qxe6 {[%clk 0:02:58.8]} 23... Qxe6
{[%clk 0:02:48.6]} 24. Rxe6 {[%clk 0:02:59.7]} 24... Kf7 {[%clk 0:02:49.1]} 25.
Re5 {[%clk 0:02:59.6]} 25... Re8 {[%clk 0:02:50]} 26. Rxe8 {[%clk 0:02:59.3]}
26... Kxe8 {[%clk 0:02:50]} 27. Kf1 {[%clk 0:03:00.2]} 27... Ke7 {[%clk
0:02:50.3]} 28. Ke2 {[%clk 0:03:00.6]} 28... Ke6 {[%clk 0:02:50.7]} 29. Kd3
{[%clk 0:03:01.2]} 29... a6 {[%clk 0:02:50.6]} 30. a4 {[%clk 0:02:57.2]} 30...
b5 {[%clk 0:02:50.2]} 31. axb5 {[%clk 0:02:56.5]} 31... axb5 {[%clk 0:02:50.1]}
32. b3 {[%clk 0:02:57.1]} 32... Kd6 {[%clk 0:02:48.9]} 33. c4 {[%clk 0:02:56]}
33... b4 {[%clk 0:02:48.1]} 34. cxd5 {[%clk 0:02:55.2]} 34... Kxd5 {[%clk
0:02:48.2]} 35. Ke3 {[%clk 0:02:54.6]} 35... h5 {[%clk 0:02:45.1]} 36. Kd3
{[%clk 0:02:55]} 36... h4 {[%clk 0:02:41.4]} 37. h3 {[%clk 0:02:53.9]} 37... g4
{[%clk 0:02:39.6]} 38. f3 {[%clk 0:02:49.5]} 38... gxf3 {[%clk 0:02:35.2]} 39.
gxf3 {[%clk 0:02:49.2]} 39... f4 {[%clk 0:02:35.4]} 40. Kc2 {[%clk 0:02:49.2]}
40... Kxd4 {[%clk 0:02:34.8]} 41. Kd2 {[%clk 0:02:49.9]} 41... Ke5 {[%clk
0:02:35]} 42. Kd3 {[%clk 0:02:50.2]} 42... Kd5 {[%clk 0:02:35.4]} 43. Kc2 {[%clk
0:02:50.7]} 43... Kd4 {[%clk 0:02:35.4]} 44. Kd2 {[%clk 0:02:51.2]} 44... Ke5
{[%clk 0:02:35.8]} 45. Ke2 {[%clk 0:02:48.1]} 45... Kd4 {[%clk 0:02:32.7]} 46.
Kd2 {[%clk 0:02:48.4]} 1/2-1/2

[Event "*** SCC Grand Prix: Titled Tuesday Blitz"]
[Site "Chess.com"]
[Date "2020.08.11"]
[Round "9"]
[White "Roza_Idrisova"]
[Black "coocloo"]
[Result "1-0"]
[WhiteElo "2205"]
[BlackElo "2025"]
[TimeControl "180+1"]
[EndTime "11:41:16 PDT"]
[Termination "Roza_Idrisova won by resignation"]

1. d4 {[%clk 0:03:00.9]} 1... d5 {[%clk 0:02:56.8]} 2. Nf3 {[%clk 0:03:00.4]}
2... Nf6 {[%clk 0:02:56.1]} 3. Bg5 {[%clk 0:02:59.2]} 3... e6 {[%clk 0:02:55.5]}
4. e3 {[%clk 0:02:59]} 4... h6 {[%clk 0:02:56]} 5. Bh4 {[%clk 0:02:57.8]} 5...
Be7 {[%clk 0:02:56.1]} 6. Nbd2 {[%clk 0:02:57.3]} 6... O-O {[%clk 0:02:56.4]} 7.
Bd3 {[%clk 0:02:57.2]} 7... b6 {[%clk 0:02:56.9]} 8. O-O {[%clk 0:02:56.7]} 8...
Bb7 {[%clk 0:02:57.4]} 9. Ne5 {[%clk 0:02:56.7]} 9... Nbd7 {[%clk 0:02:57.6]}
10. f4 {[%clk 0:02:56.7]} 10... Ne4 {[%clk 0:02:56.2]} 11. Bxe7 {[%clk
0:02:54.4]} 11... Qxe7 {[%clk 0:02:55.7]} 12. Ndf3 {[%clk 0:02:53.2]} 12... Ndf6
{[%clk 0:02:54.5]} 13. c3 {[%clk 0:02:51.9]} 13... c5 {[%clk 0:02:54.6]} 14. Rc1
{[%clk 0:02:50.4]} 14... cxd4 {[%clk 0:02:54.5]} 15. exd4 {[%clk 0:02:49.8]}
15... Rac8 {[%clk 0:02:54.5]} 16. Qe2 {[%clk 0:02:48.7]} 16... Nd6 {[%clk
0:02:45.2]} 17. Rfe1 {[%clk 0:02:43.6]} 17... Nfe4 {[%clk 0:02:44.9]} 18. Bb1
{[%clk 0:02:39.1]} 18... a6 {[%clk 0:02:38.9]} 19. Nd2 {[%clk 0:02:26.4]} 19...
Nf6 {[%clk 0:02:37.5]} 20. Nd3 {[%clk 0:02:20.3]} 20... Nfe4 {[%clk 0:02:30.2]}
21. Nxe4 {[%clk 0:02:19.3]} 21... Nxe4 {[%clk 0:02:29]} 22. Ne5 {[%clk
0:02:14.3]} 22... Nd6 {[%clk 0:02:23.7]} 23. h3 {[%clk 0:02:13.2]} 23... b5
{[%clk 0:02:16.9]} 24. a3 {[%clk 0:02:11.7]} 24... Qh4 {[%clk 0:02:16.1]} 25.
Qf2 {[%clk 0:02:04.3]} 25... a5 {[%clk 0:02:13.7]} 26. Qxh4 {[%clk 0:02:02.5]}
1-0

[Event "*** SCC Grand Prix: Titled Tuesday Blitz"]
[Site "Chess.com"]
[Date "2020.08.11"]
[Round "9"]
[White "TioCridineno"]
[Black "MarceloPlaya"]
[Result "0-1"]
[WhiteElo "2214"]
[BlackElo "2342"]
[TimeControl "180+1"]
[EndTime "11:41:54 PDT"]
[Termination "MarceloPlaya won by resignation"]

1. e4 {[%clk 0:03:00.9]} 1... e6 {[%clk 0:03:00.9]} 2. d3 {[%clk 0:02:52.5]}
2... d5 {[%clk 0:03:00.7]} 3. Nd2 {[%clk 0:02:49.2]} 3... Bc5 {[%clk 0:02:59.6]}
4. Ngf3 {[%clk 0:02:47.5]} 4... Nf6 {[%clk 0:02:58.5]} 5. d4 {[%clk 0:02:43.6]}
5... dxe4 {[%clk 0:02:52.5]} 6. dxc5 {[%clk 0:02:42.2]} 6... exf3 {[%clk
0:02:51.8]} 7. Qxf3 {[%clk 0:02:42.3]} 7... O-O {[%clk 0:02:50]} 8. Bd3 {[%clk
0:02:41.5]} 8... Nbd7 {[%clk 0:02:48.4]} 9. b4 {[%clk 0:02:41.1]} 9... Ne5
{[%clk 0:02:47.3]} 10. Qe2 {[%clk 0:02:36.9]} 10... Nxd3+ {[%clk 0:02:40.8]} 11.
Qxd3 {[%clk 0:02:36.8]} 11... Qxd3 {[%clk 0:02:37.2]} 12. cxd3 {[%clk
0:02:36.9]} 12... Rd8 {[%clk 0:02:37.1]} 13. Ke2 {[%clk 0:02:36.4]} 13... b6
{[%clk 0:02:36.9]} 14. Bb2 {[%clk 0:02:28.7]} 14... bxc5 {[%clk 0:02:32.5]} 15.
bxc5 {[%clk 0:02:26.3]} 15... Ba6 {[%clk 0:02:31.6]} 16. Nc4 {[%clk 0:02:25.8]}
16... Bxc4 {[%clk 0:02:30.2]} 17. dxc4 {[%clk 0:02:26.2]} 17... Ne4 {[%clk
0:02:29.4]} 18. Ba3 {[%clk 0:02:22.9]} 18... Rd4 {[%clk 0:02:26.7]} 19. Ke3
{[%clk 0:02:13.8]} 19... Rxc4 {[%clk 0:02:24.6]} 20. Rac1 {[%clk 0:02:12.9]}
20... Ra4 {[%clk 0:02:17.4]} 21. Bb2 {[%clk 0:02:08.9]} 21... Rxa2 {[%clk
0:02:11.1]} 22. Be5 {[%clk 0:02:05]} 22... Nxf2 {[%clk 0:02:08.9]} 23. Rhf1
{[%clk 0:01:52.3]} 23... Ng4+ {[%clk 0:02:07.5]} 24. Kf4 {[%clk 0:01:52.8]}
24... Ra4+ {[%clk 0:02:02.1]} 0-1

[Event "*** SCC Grand Prix: Titled Tuesday Blitz"]
[Site "Chess.com"]
[Date "2020.08.11"]
[Round "9"]
[White "Grieve72"]
[Black "suyu28"]
[Result "1-0"]
[WhiteElo "2395"]
[BlackElo "2569"]
[TimeControl "180+1"]
[EndTime "11:41:59 PDT"]
[Termination "Grieve72 won by checkmate"]

1. e4 {[%clk 0:03:00.9]} 1... c6 {[%clk 0:02:59.8]} 2. d4 {[%clk 0:03:00.6]}
2... d5 {[%clk 0:03:00.1]} 3. e5 {[%clk 0:03:01.1]} 3... Bf5 {[%clk 0:02:59.7]}
4. h4 {[%clk 0:03:01.3]} 4... h6 {[%clk 0:02:56.2]} 5. g4 {[%clk 0:03:00.6]}
5... Bh7 {[%clk 0:02:56.2]} 6. e6 {[%clk 0:02:55.6]} 6... fxe6 {[%clk
0:02:54.1]} 7. Bd3 {[%clk 0:02:54]} 7... Bxd3 {[%clk 0:02:49.2]} 8. Qxd3 {[%clk
0:02:54.9]} 8... c5 {[%clk 0:02:49.9]} 9. Nf3 {[%clk 0:02:33.3]} 9... Nc6 {[%clk
0:02:48.6]} 10. dxc5 {[%clk 0:02:17.8]} 10... Qa5+ {[%clk 0:02:45.2]} 11. Nc3
{[%clk 0:02:16.8]} 11... O-O-O {[%clk 0:02:44.1]} 12. Nd4 {[%clk 0:01:58.2]}
12... Nxd4 {[%clk 0:02:22.5]} 13. Qxd4 {[%clk 0:01:59.1]} 13... e5 {[%clk
0:02:18]} 14. Qxe5 {[%clk 0:01:45.9]} 14... d4 {[%clk 0:02:14.4]} 15. Bf4 {[%clk
0:01:38.7]} 15... dxc3 {[%clk 0:01:48.1]} 16. b4 {[%clk 0:01:38.2]} 16... Qxb4
{[%clk 0:01:35.1]} 17. Qc7# {[%clk 0:01:38]} 1-0

[Event "*** SCC Grand Prix: Titled Tuesday Blitz"]
[Site "Chess.com"]
[Date "2020.08.11"]
[Round "9"]
[White "Azoulas1"]
[Black "KaspMagAlpha"]
[Result "0-1"]
[WhiteElo "1999"]
[BlackElo "2178"]
[TimeControl "180+1"]
[EndTime "11:42:04 PDT"]
[Termination "KaspMagAlpha won by checkmate"]

1. d4 {[%clk 0:03:00.9]} 1... Nf6 {[%clk 0:02:59.7]} 2. c4 {[%clk 0:02:58.6]}
2... e6 {[%clk 0:02:59.7]} 3. Nf3 {[%clk 0:02:57.6]} 3... Bb4+ {[%clk
0:02:58.6]} 4. Bd2 {[%clk 0:02:55.3]} 4... c5 {[%clk 0:02:57.6]} 5. Bxb4 {[%clk
0:02:51.8]} 5... cxb4 {[%clk 0:02:57.2]} 6. g3 {[%clk 0:02:50.8]} 6... O-O
{[%clk 0:02:55.5]} 7. Bg2 {[%clk 0:02:48.4]} 7... b6 {[%clk 0:02:54.8]} 8. Ne5
{[%clk 0:02:38.6]} 8... d5 {[%clk 0:02:54.4]} 9. O-O {[%clk 0:02:36.8]} 9... Bb7
{[%clk 0:02:54.3]} 10. Nd2 {[%clk 0:02:33.7]} 10... Nbd7 {[%clk 0:02:53.3]} 11.
Re1 {[%clk 0:02:30.4]} 11... Rc8 {[%clk 0:02:52.5]} 12. b3 {[%clk 0:02:23.4]}
12... Nxe5 {[%clk 0:02:47.1]} 13. dxe5 {[%clk 0:02:20.7]} 13... Ng4 {[%clk
0:02:47.1]} 14. f4 {[%clk 0:02:16.6]} 14... Ne3 {[%clk 0:02:46]} 15. Qb1 {[%clk
0:02:09.7]} 15... Nxg2 {[%clk 0:02:44.5]} 16. e4 {[%clk 0:02:02]} 16... Nxe1
{[%clk 0:02:32.8]} 17. Qxe1 {[%clk 0:01:57.1]} 17... dxe4 {[%clk 0:02:31.3]} 18.
Nf1 {[%clk 0:01:54.6]} 18... Qd4+ {[%clk 0:02:30.3]} 19. Ne3 {[%clk 0:01:53.2]}
19... Rfd8 {[%clk 0:02:29.1]} 20. Rd1 {[%clk 0:01:50.6]} 20... Qc5 {[%clk
0:02:28.6]} 21. Kg2 {[%clk 0:01:47.4]} 21... Rxd1 {[%clk 0:02:27.1]} 22. Nxd1
{[%clk 0:01:45.6]} 22... e3+ {[%clk 0:02:27.5]} 23. Kh3 {[%clk 0:01:37.9]} 23...
Qc6 {[%clk 0:02:21.4]} 24. Nxe3 {[%clk 0:01:36]} 24... g5 {[%clk 0:02:17]} 25.
f5 {[%clk 0:01:30.1]} 25... Qf3 {[%clk 0:02:15.6]} 26. Ng4 {[%clk 0:01:17.7]}
26... Qg2# {[%clk 0:02:11.8]} 0-1

[Event "*** SCC Grand Prix: Titled Tuesday Blitz"]
[Site "Chess.com"]
[Date "2020.08.11"]
[Round "9"]
[White "nrvisakh"]
[Black "CaspiIsrael"]
[Result "1-0"]
[WhiteElo "2778"]
[BlackElo "2649"]
[TimeControl "180+1"]
[EndTime "11:42:12 PDT"]
[Termination "nrvisakh won by checkmate"]

1. e4 {[%clk 0:03:00.9]} 1... d5 {[%clk 0:02:56.2]} 2. exd5 {[%clk 0:03:00.5]}
2... Qxd5 {[%clk 0:02:57.1]} 3. Nc3 {[%clk 0:03:01.2]} 3... Qd6 {[%clk
0:02:57.5]} 4. Nf3 {[%clk 0:03:01.5]} 4... Nf6 {[%clk 0:02:57.8]} 5. d4 {[%clk
0:03:01.4]} 5... a6 {[%clk 0:02:58]} 6. Bc4 {[%clk 0:02:59.4]} 6... b5 {[%clk
0:02:57.5]} 7. Bb3 {[%clk 0:02:59.1]} 7... Bb7 {[%clk 0:02:57.6]} 8. O-O {[%clk
0:02:58.4]} 8... e6 {[%clk 0:02:57.9]} 9. Ne5 {[%clk 0:02:55]} 9... c5 {[%clk
0:02:54]} 10. Bf4 {[%clk 0:02:48.6]} 10... c4 {[%clk 0:02:31.7]} 11. Ng6 {[%clk
0:02:42.2]} 11... Qc6 {[%clk 0:02:27.4]} 12. d5 {[%clk 0:02:42.2]} 12... Nxd5
{[%clk 0:02:27.2]} 13. Nxd5 {[%clk 0:02:39.2]} 13... hxg6 {[%clk 0:02:01.7]} 14.
Nc7+ {[%clk 0:02:39.1]} 14... Ke7 {[%clk 0:02:01.9]} 15. Qg4 {[%clk 0:02:39.5]}
15... Ra7 {[%clk 0:01:49]} 16. Rad1 {[%clk 0:02:11.7]} 16... Nd7 {[%clk
0:01:47.3]} 17. Rfe1 {[%clk 0:02:11.3]} 17... cxb3 {[%clk 0:01:35.2]} 18. Bg5+
{[%clk 0:02:01.4]} 18... Nf6 {[%clk 0:01:20.8]} 19. Qb4+ {[%clk 0:01:58.5]}
19... Qd6 {[%clk 0:01:12.4]} 20. Qxd6# {[%clk 0:01:57.5]} 1-0